bitfinex-derivatives/quotes_BTCF0:USTF0_20241005
["timestamp","ask_amount","ask_price","bid_price","bid_amount"]
[1728146329975,0.3778,62126.0,62125.0,0.176335]
[1728146330372,0.52435862,62126.0,62125.0,0.176335]
[1728146331578,0.16355862,62126.0,62125.0,0.176335]
[1728146331776,0.10582592,62126.0,62125.0,0.176335]
[1728146332786,0.10582592,62126.0,62125.0,0.056335]
[1728146338579,0.017,62126.0,62125.0,0.176335]
[1728146339580,0.017,62126.0,62125.0,0.24061374]
[1728146343591,0.017,62126.0,62125.0,0.176335]
[1728146347597,0.017,62126.0,62125.0,0.056335]
[1728146352006,0.017,62126.0,62125.0,0.12069157]
[1728146353500,0.31368556,62126.0,62125.0,0.056335]
[1728146354702,0.10581522,62126.0,62125.0,0.056335]
[1728146356695,0.10581522,62126.0,62125.0,0.417135]
[1728146359014,0.10581522,62126.0,62125.0,0.537135]
[1728146360409,0.017,62126.0,62125.0,0.65978936]
[1728146362012,0.017,62126.0,62125.0,0.75629872]
[1728146363109,0.017,62126.0,62125.0,0.65978936]
[1728146363710,0.017,62126.0,62125.0,0.75629872]
[1728146364407,0.017,62126.0,62125.0,0.65978936]
[1728146364606,0.017,62126.0,62125.0,0.75629872]
[1728146364806,0.017,62126.0,62125.0,0.65978936]
[1728146366817,0.017,62126.0,62125.0,0.29898936]
[1728146367011,0.017,62126.0,62125.0,0.65978936]
[1728146367211,0.017,62126.0,62125.0,0.53978936]
[1728146367510,0.017,62126.0,62125.0,0.65978936]
[1728146368512,0.10581737,62126.0,62125.0,0.537135]
[1728146369115,0.10581737,62126.0,62125.0,0.176335]
[1728146369315,0.10581737,62126.0,62125.0,0.537135]
[1728146371213,0.10581725,62126.0,62125.0,0.537135]
[1728146371916,0.10581725,62126.0,62125.0,0.176335]
[1728146372112,0.10581725,62126.0,62125.0,0.537135]
[1728146372910,0.10581725,62126.0,62125.0,0.176335]
[1728146373109,0.10581725,62126.0,62125.0,0.537135]
[1728146374420,0.10581725,62126.0,62125.0,0.176335]
[1728146374618,0.10581725,62126.0,62125.0,0.537135]
[1728146374823,0.10581725,62126.0,62125.0,0.417135]
[1728146375120,0.10581725,62126.0,62125.0,0.537135]
[1728146375524,0.00580031,62128.0,62125.0,0.6999636]
[1728146375722,0.0321,62130.0,62126.0,0.12265424]
[1728146375913,0.0321,62130.0,62129.0,0.056331]
[1728146376118,0.0321,62130.0,62129.0,0.17898523]
[1728146377831,0.0431,62130.0,62129.0,0.17998523]
[1728146378513,0.0551,62130.0,62129.0,0.27749459]
[1728146379225,0.08343702,62130.0,62129.0,0.27749459]
[1728146379522,0.08343702,62130.0,62129.0,0.18098523]
[1728146383533,0.08343702,62130.0,62129.0,0.058331]
[1728146383931,0.08343702,62130.0,62129.0,0.002]
[1728146384131,0.13976702,62130.0,62129.0,0.002]
[1728146384731,0.25976702,62130.0,62129.0,0.002]
[1728146385036,0.25976702,62130.0,62129.0,0.058331]
[1728146390634,0.37968288,62130.0,62129.0,0.04497632]
[1728146390823,0.437414,62130.0,62129.0,0.04497632]
[1728146394732,0.3880076,62130.0,62129.0,0.04497632]
[1728146394930,0.43741419,62130.0,62129.0,0.04497632]
[1728146395836,0.79821419,62130.0,62129.0,0.04497632]
[1728146398633,0.62056702,62130.0,62126.0,0.12]
[1728146399437,0.62056702,62130.0,62129.0,0.056331]
[1728146399841,0.61856702,62130.0,62129.0,0.056331]
[1728146400038,0.60756702,62130.0,62129.0,0.056331]
[1728146400344,0.61556702,62130.0,62129.0,0.056331]
[1728146400744,0.61956702,62130.0,62129.0,0.057331]
[1728146401438,0.62156702,62130.0,62129.0,0.058331]
[1728146403446,0.50156702,62130.0,62129.0,0.058331]
[1728146405638,0.67921314,62130.0,62129.0,0.058331]
[1728146406641,0.67921314,62130.0,62129.0,0.002]
[1728146407137,0.056334,62126.0,62125.0,0.056335]
[1728146407340,0.24684301,62126.0,62125.0,0.056335]
[1728146407638,0.29624928,62126.0,62125.0,0.056335]
[1728146408441,0.30524928,62126.0,62125.0,0.057335]
[1728146409351,0.31224928,62126.0,62125.0,0.058335]
[1728146411452,0.31224928,62126.0,62125.0,0.002]
[1728146412146,0.31226373,62126.0,62125.0,0.002]
[1728146412541,0.192334,62126.0,62125.0,0.002]
[1728146412752,0.553134,62126.0,62125.0,0.002]
[1728146413250,0.553134,62126.0,62125.0,0.00118649]
[1728146413251,0.58422994,62126.0,62125.0,0.00118649]
[1728146413649,0.58422994,62126.0,62125.0,0.00056445]
[1728146415248,0.58423104,62126.0,62125.0,0.00056445]
[1728146416658,0.056338,62121.0,62120.0,0.0037]
[1728146416859,0.056342,62118.0,62115.0,0.05201466]
[1728146417169,0.176342,62118.0,62114.0,0.056345]
[1728146417345,0.056342,62117.0,62114.0,0.056345]
[1728146418061,0.12,62115.0,62114.0,0.056345]
[1728146418764,0.176344,62115.0,62114.0,0.056345]
[1728146418944,0.176344,62115.0,62111.0,0.41281466]
[1728146419258,0.176344,62115.0,62111.0,0.46546166]
[1728146419556,0.176344,62115.0,62114.0,0.004]
[1728146419950,0.177344,62115.0,62114.0,0.002]
[1728146420753,0.29728284,62115.0,62114.0,0.00155789]
[1728146420958,0.29628315,62115.0,62114.0,0.00155789]
[1728146421158,0.29628315,62115.0,62114.0,0.00555789]
[1728146423053,0.35402533,62115.0,62114.0,0.00555789]
[1728146423651,0.5044596,62115.0,62114.0,0.00555789]
[1728146424048,0.35402533,62115.0,62114.0,0.00555789]
[1728146425557,0.35403174,62115.0,62114.0,0.00555789]
[1728146426061,0.17628956,62115.0,62114.0,0.00555789]
[1728146426259,0.38439156,62115.0,62114.0,0.00555789]
[1728146427670,0.264446,62115.0,62114.0,0.00555789]
[1728146427857,0.417144,62115.0,62114.0,0.00555789]
[1728146429666,0.056344,62115.0,62114.0,0.00555789]
[1728146429855,0.417144,62115.0,62114.0,0.00555789]
[1728146433361,0.056344,62115.0,62114.0,0.00555789]
[1728146433570,0.417144,62115.0,62114.0,0.00555789]
[1728146437171,0.419774,62115.0,62114.0,0.00555789]
[1728146437871,0.058974,62115.0,62114.0,0.00555789]
[1728146438367,0.419774,62115.0,62114.0,0.00555789]
[1728146441166,0.058974,62115.0,62114.0,0.00555789]
[1728146441370,0.419774,62115.0,62114.0,0.00555789]
[1728146442671,0.59746622,62115.0,62114.0,0.00434228]
[1728146442867,0.23666622,62115.0,62114.0,0.00434228]
[1728146443070,0.1789204,62115.0,62114.0,0.00434228]
[1728146444470,0.17891476,62115.0,62114.0,0.00434228]
[1728146450778,0.058974,62115.0,62114.0,0.00434228]
[1728146457784,0.058974,62115.0,62114.0,0.00338999]
[1728146457785,0.53971678,62115.0,62114.0,0.00338999]
[1728146457980,0.59746086,62115.0,62114.0,0.00338999]
[1728146458183,0.47751808,62115.0,62114.0,0.00338999]
[1728146458383,0.59746086,62115.0,62114.0,0.00338999]
[1728146462801,0.80617832,62115.0,62114.0,0.00338999]
[1728146463485,0.59746086,62115.0,62114.0,0.00338999]
[1728146465796,0.419774,62115.0,62114.0,0.00338999]
[1728146467494,0.419774,62115.0,62108.0,0.0037]
[1728146467495,0.36343,62115.0,62108.0,0.05201466]
[1728146467693,0.056349,62109.0,62108.0,0.0037]
[1728146467902,0.056348,62110.0,62107.0,0.04831466]
[1728146467903,0.05635,62108.0,62107.0,0.04831466]
[1728146468695,0.056351,62107.0,62106.0,0.04831148]
[1728146469198,0.417149,62109.0,62108.0,0.006]
[1728146469601,0.417149,62109.0,62108.0,0.126]
[1728146469807,0.417149,62109.0,62108.0,0.12]
[1728146470483,0.418149,62109.0,62108.0,0.126]
[1728146471090,0.419149,62109.0,62108.0,0.131]
[1728146471686,0.419149,62109.0,62108.0,0.17931148]
[1728146472793,0.59685018,62109.0,62100.0,0.0075]
[1728146472996,0.59685018,62109.0,62076.0,0.5384]
[1728146472997,0.17770118,62108.0,62106.0,0.056352]
[1728146473196,0.17770118,62107.0,62106.0,0.056352]
[1728146473794,0.14659932,62107.0,62106.0,0.056352]
[1728146474001,0.14659932,62107.0,62106.0,0.176352]
[1728146474785,0.14759932,62107.0,62106.0,0.181352]
[1728146475398,0.14859932,62107.0,62106.0,0.181352]
[1728146475597,0.14859721,62107.0,62106.0,0.181352]
[1728146480089,0.14859721,62107.0,62106.0,0.061352]
[1728146480287,0.14859721,62107.0,62106.0,0.181352]
[1728146480802,0.002,62107.0,62106.0,0.181352]
[1728146483607,0.002,62107.0,62106.0,0.061352]
[1728146483797,0.178351,62107.0,62106.0,0.061352]
[1728146485301,0.178351,62107.0,62106.0,0.005]
[1728146487699,0.21778126,62107.0,62106.0,0.005]
[1728146489695,0.22041115,62107.0,62106.0,0.005]
[1728146492306,0.180981,62107.0,62106.0,0.005]
[1728146495311,0.060981,62107.0,62106.0,0.005]
[1728146496203,0.20758398,62107.0,62106.0,0.005]
[1728146496800,0.11873117,62107.0,62106.0,0.005]
[1728146500413,0.23873117,62107.0,62106.0,0.005]
[1728146502110,0.30183117,62107.0,62106.0,0.005]
[1728146502705,0.40041263,62107.0,62098.0,0.29424959]
[1728146503016,0.12,62103.0,62100.0,0.12]
[1728146503306,0.1466051,62102.0,62101.0,0.056356]
[1728146503506,0.12,62103.0,62102.0,0.056356]
[1728146503708,0.056354,62104.0,62102.0,0.056356]
[1728146504304,0.001,62103.0,62102.0,0.056356]
[1728146505009,0.057354,62104.0,62102.0,0.056356]
[1728146505211,0.12,62103.0,62102.0,0.056356]
[1728146505611,0.121,62103.0,62102.0,0.056356]
[1728146506118,0.122,62103.0,62102.0,0.056356]
[1728146506817,0.122,62103.0,62102.0,0.03481634]
[1728146507118,0.122,62103.0,62098.0,0.12]
[1728146507506,0.001,62103.0,62102.0,0.056356]
[1728146508214,0.002,62103.0,62102.0,0.056356]
[1728146509218,0.03071593,62103.0,62102.0,0.056356]
[1728146510418,0.17732461,62103.0,62102.0,0.02700948]
[1728146514026,0.08846835,62103.0,62102.0,0.02700948]
[1728146514227,0.17732643,62103.0,62102.0,0.02700948]
[1728146517916,0.17732643,62103.0,62102.0,0.01118739]
[1728146518123,0.17732643,62103.0,62100.0,0.12]
[1728146518321,0.1466105,62102.0,62101.0,0.056356]
[1728146518523,0.03071593,62103.0,62102.0,0.056356]
[1728146520030,0.03071593,62103.0,62102.0,0.02482746]
[1728146523030,0.03071593,62103.0,62097.0,0.77168]
[1728146523330,0.03071593,62103.0,62102.0,0.12]
[1728146523532,0.03071593,62103.0,62102.0,0.176356]
[1728146524124,0.02971593,62103.0,62102.0,0.176356]
[1728146524322,0.03071593,62103.0,62102.0,0.176356]
[1728146524924,0.02971593,62103.0,62102.0,0.176356]
[1728146525130,0.03071593,62103.0,62102.0,0.176356]
[1728146528327,0.03071593,62103.0,62102.0,0.056356]
[1728146530527,0.07014841,62103.0,62102.0,0.056356]
[1728146532037,0.07014841,62103.0,62099.0,0.12]
[1728146532338,0.03071593,62103.0,62099.0,0.12]
[1728146532538,0.03071593,62103.0,62102.0,0.056356]
[1728146532731,0.07014841,62103.0,62102.0,0.056356]
[1728146533239,0.06914841,62103.0,62102.0,0.056356]
[1728146533431,0.07014841,62103.0,62102.0,0.056356]
[1728146533630,0.24340909,62103.0,62097.0,0.71214014]
[1728146533833,0.21269316,62102.0,62101.0,0.056356]
[1728146534052,0.14661176,62102.0,62101.0,0.056356]
[1728146534542,0.0888582,62102.0,62101.0,0.056356]
[1728146535131,0.14661176,62102.0,62101.0,0.056356]
[1728146535333,0.14761176,62102.0,62101.0,0.056356]
[1728146536135,0.0898582,62102.0,62101.0,0.056356]
[1728146536329,0.14761176,62102.0,62101.0,0.056356]
[1728146536533,0.14861176,62102.0,62101.0,0.056356]
[1728146536732,0.05975356,62102.0,62101.0,0.056356]
[1728146536931,0.14861199,62102.0,62101.0,0.056356]
[1728146538635,0.21469339,62102.0,62101.0,0.02731173]
[1728146538838,0.21469339,62102.0,62101.0,0.056356]
[1728146539543,0.21469339,62102.0,62098.0,0.12]
[1728146539544,0.21469339,62102.0,62097.0,0.69954906]
[1728146539737,0.25687192,62100.0,62099.0,0.056358]
[1728146539950,0.46956531,62100.0,62099.0,0.056358]
[1728146540534,0.46956531,62100.0,62099.0,0.25959236]
[1728146540535,0.25687192,62100.0,62099.0,0.25959236]
[1728146541048,0.25787192,62100.0,62099.0,0.25959236]
[1728146541243,0.001,62100.0,62099.0,0.25959236]
[1728146541645,0.001,62100.0,62099.0,0.25959213]
[1728146542847,0.002,62100.0,62099.0,0.25959213]
[1728146548650,0.14861242,62100.0,62097.0,0.74237441]
[1728146548844,0.14661242,62099.0,62097.0,0.74237441]
[1728146549048,0.14661242,62098.0,62097.0,0.79873441]
[1728146549653,0.10717989,62098.0,62097.0,0.79873441]
[1728146550442,0.10817989,62098.0,62097.0,0.79873441]
[1728146552045,0.10917989,62098.0,62097.0,0.79873441]
[1728146555551,0.05975389,62098.0,62097.0,0.92144574]
[1728146555748,0.002,62098.0,62097.0,0.92144574]
[1728146556254,0.002,62098.0,62097.0,0.92144674]
[1728146557762,0.002,62098.0,62097.0,0.92144664]
[1728146561251,0.002,62098.0,62097.0,0.92144651]
[1728146562958,0.002,62098.0,62097.0,0.80144651]
[1728146563655,0.05142596,62098.0,62097.0,0.51745797]
[1728146563864,0.10917981,62098.0,62097.0,0.51745797]
[1728146568264,0.10917981,62098.0,62097.0,0.63745797]
[1728146569458,0.10917981,62098.0,62097.0,0.51745797]
[1728146569762,0.10917981,62098.0,62097.0,0.41169747]
[1728146570768,0.002,62098.0,62097.0,0.5746762]
[1728146570960,0.002,62098.0,62097.0,0.47804956]
[1728146570961,0.122,62098.0,62097.0,0.47804956]
[1728146571859,0.121,62098.0,62097.0,0.47804956]
[1728146572060,0.122,62098.0,62097.0,0.47804956]
[1728146573459,0.121,62098.0,62097.0,0.55859792]
[1728146573866,0.122,62098.0,62097.0,0.47804956]
[1728146574364,0.122,62098.0,62097.0,0.55859357]
[1728146574764,0.122,62098.0,62097.0,0.47804956]
[1728146575570,0.122,62098.0,62097.0,0.55858975]
[1728146576964,0.122,62098.0,62097.0,0.67858975]
[1728146577172,0.002,62098.0,62097.0,0.67858975]
[1728146580575,0.002,62098.0,62097.0,0.67859468]
[1728146582075,0.122,62098.0,62097.0,0.35533747]
[1728146582374,0.1844,62098.0,62097.0,0.35533747]
[1728146584467,0.240759,62098.0,62097.0,0.35533747]
[1728146584676,0.1844,62098.0,62097.0,0.35533747]
[1728146584875,0.002,62098.0,62097.0,0.35533747]
[1728146585076,0.002,62098.0,62097.0,0.41169747]
[1728146585884,0.05142983,62098.0,62097.0,0.41169747]
[1728146588377,0.1091882,62098.0,62097.0,0.41169747]
[1728146588584,0.05142983,62098.0,62097.0,0.41169747]
[1728146588778,0.1091882,62098.0,62097.0,0.41169747]
[1728146592478,0.1091882,62098.0,62097.0,0.15853937]
[1728146592679,0.002,62098.0,62097.0,0.03767113]
[1728146596589,0.00463,62098.0,62097.0,0.03767113]
[1728146598880,0.00463,62098.0,62097.0,0.52079113]
[1728146599078,0.00463,62098.0,62097.0,1.18559113]
[1728146600885,0.0038,62102.0,62101.0,0.056356]
[1728146601087,0.0038,62106.0,62103.0,0.056355]
[1728146601287,0.0038,62106.0,62105.0,0.056353]
[1728146601487,0.0038,62109.0,62107.0,0.056351]
[1728146601792,0.0075,62110.0,62108.0,0.18434366]
[1728146601984,0.03571964,62112.0,62109.0,0.056349]
[1728146602182,0.03571964,62112.0,62111.0,0.12]
[1728146602387,0.03191964,62112.0,62111.0,0.16824753]
[1728146602792,0.03191964,62112.0,62111.0,0.176347]
[1728146603796,0.04391964,62112.0,62111.0,0.176347]
[1728146607695,0.1510789,62112.0,62111.0,0.176347]
[1728146609302,0.1510789,62112.0,62105.0,0.02880177]
[1728146609303,0.21714796,62112.0,62105.0,0.02880177]
[1728146609596,0.21714796,62112.0,62106.0,0.056352]
[1728146609597,0.12,62107.0,62106.0,0.056352]
[1728146609800,0.04941649,62107.0,62106.0,0.056352]
[1728146610298,0.04941649,62109.0,62106.0,0.056352]
[1728146610498,0.04941649,62109.0,62108.0,0.17635]
[1728146611393,0.04941649,62110.0,62108.0,0.17635]
[1728146611601,0.04941649,62109.0,62108.0,0.17635]
[1728146611798,0.04941649,62110.0,62108.0,0.17635]
[1728146612393,0.04941649,62110.0,62109.0,0.056349]
[1728146612589,0.05341649,62110.0,62109.0,0.056349]
[1728146614308,0.05741649,62110.0,62109.0,0.056349]
[1728146614601,0.05741649,62110.0,62108.0,0.12]
[1728146614602,0.18123052,62110.0,62101.0,0.3608]
[1728146614804,0.25599667,62102.0,62101.0,0.417156]
[1728146615007,0.42922719,62102.0,62101.0,0.417156]
[1728146615906,0.25599667,62102.0,62101.0,0.417156]
[1728146616398,0.0113,62106.0,62101.0,0.417156]
[1728146616601,0.0113,62106.0,62105.0,0.176353]
[1728146616902,0.0113,62110.0,62109.0,0.056349]
[1728146617100,0.00241556,62112.0,62111.0,0.056347]
[1728146617307,0.00241556,62112.0,62111.0,0.165047]
[1728146618300,0.00941556,62112.0,62111.0,0.165047]
[1728146620096,0.13441556,62112.0,62111.0,0.165047]
[1728146620603,0.01441556,62112.0,62111.0,0.165047]
[1728146622714,0.18765214,62112.0,62111.0,0.14854231]
[1728146627712,0.18765214,62112.0,62111.0,0.13368808]
[1728146627920,0.18523658,62112.0,62111.0,0.12]
[1728146628210,0.18523658,62112.0,62111.0,0.176347]
[1728146629207,0.08543658,62112.0,62111.0,0.176347]
[1728146630514,0.08543658,62112.0,62111.0,0.2050603]
[1728146630906,0.0037,62119.0,62118.0,0.056341]
[1728146631115,0.03649615,62126.0,62118.0,0.12]
[1728146631411,0.088733,62127.0,62124.0,0.12]
[1728146631611,0.11724403,62127.0,62124.0,0.12]
[1728146632110,0.12,62125.0,62118.0,0.056341]
[1728146632305,0.12,62120.0,62118.0,0.056341]
[1728146632608,0.12,62120.0,62118.0,0.060041]
[1728146632609,0.0303,62119.0,62118.0,0.060041]
[1728146632809,0.0423,62119.0,62118.0,0.057341]
[1728146633315,0.0423,62119.0,62118.0,0.058341]
[1728146633503,0.0303,62119.0,62118.0,0.058341]
[1728146633907,0.0423,62119.0,62118.0,0.058341]
[1728146634617,0.0543,62119.0,62118.0,0.178341]
[1728146637908,0.22751263,62119.0,62118.0,0.16013691]
[1728146642933,0.22751263,62119.0,62118.0,0.122]
[1728146643424,0.22751263,62119.0,62118.0,0.178341]
[1728146645819,0.25673543,62119.0,62118.0,0.178341]
[1728146646019,0.0835228,62119.0,62118.0,0.178341]
[1728146649924,0.05693,62119.0,62118.0,0.178341]
[1728146650123,0.02663,62119.0,62118.0,0.178341]
[1728146652626,0.02663,62119.0,62118.0,0.176341]
[1728146653022,0.27422664,62119.0,62118.0,0.10923211]
[1728146653521,0.27422664,62119.0,62118.0,0.16557311]
[1728146653829,0.0075,62123.0,62122.0,0.056337]
[1728146654022,0.20844505,62123.0,62122.0,0.176337]
[1728146654530,0.0075,62127.0,62126.0,0.056334]
[1728146654722,0.0306,62131.0,62126.0,0.12]
[1728146654723,0.29462388,62131.0,62126.0,0.12]
[1728146654917,0.29462388,62131.0,62130.0,0.17633]
[1728146655226,0.28712388,62131.0,62130.0,0.17633]
[1728146655628,0.0306,62131.0,62130.0,0.17633]
[1728146655822,0.10764873,62131.0,62130.0,0.17633]
[1728146656424,0.36407311,62131.0,62130.0,0.17633]
[1728146656734,0.36707311,62131.0,62130.0,0.17633]
[1728146656926,0.43779785,62131.0,62130.0,0.17733]
[1728146657324,0.18137347,62131.0,62130.0,0.17733]
[1728146657525,0.43774418,62131.0,62130.0,0.17733]
[1728146658136,0.43774418,62131.0,62130.0,0.15959701]
[1728146658824,0.48714606,62131.0,62130.0,0.15959701]
[1728146659127,0.23077535,62131.0,62130.0,0.15959701]
[1728146659330,0.28710435,62131.0,62130.0,0.001]
[1728146659934,0.056333,62127.0,62126.0,0.0037]
[1728146660121,0.056335,62125.0,62122.0,0.060037]
[1728146660329,0.17317535,62124.0,62122.0,0.056337]
[1728146660630,0.17317535,62123.0,62122.0,0.056337]
[1728146661025,0.31266962,62124.0,62122.0,0.056337]
[1728146661827,0.056336,62124.0,62122.0,0.056337]
[1728146662027,0.002,62123.0,62122.0,0.056337]
[1728146662737,0.09012182,62124.0,62122.0,0.056337]
[1728146662940,0.09012182,62124.0,62123.0,0.12]
[1728146663140,0.08712182,62124.0,62123.0,0.12]
[1728146663430,0.08712182,62124.0,62119.0,0.0037]
[1728146663431,0.056337,62123.0,62122.0,0.12]
[1728146664542,0.062337,62123.0,62122.0,0.121]
[1728146666339,0.067337,62123.0,62122.0,0.121]
[1728146667229,0.098137,62123.0,62122.0,0.121]
[1728146668029,0.098137,62123.0,62122.0,0.18534366]
[1728146670039,0.098137,62123.0,62122.0,0.06534366]
[1728146670235,0.218137,62123.0,62122.0,0.06534366]
[1728146670837,0.218137,62123.0,62122.0,0.001]
[1728146672338,0.098137,62123.0,62122.0,0.121]
[1728146675140,0.098137,62123.0,62122.0,0.18534366]
[1728146675733,0.098137,62123.0,62122.0,0.121]
[1728146676247,0.1475465,62123.0,62122.0,0.121]
[1728146678147,0.1969561,62123.0,62122.0,0.121]
[1728146678335,0.1475466,62123.0,62122.0,0.121]
[1728146679038,0.20528122,62123.0,62122.0,0.121]
[1728146679251,0.1475466,62123.0,62122.0,0.121]
[1728146681846,0.35580733,62123.0,62122.0,0.121]
[1728146683041,0.35580733,62123.0,62122.0,0.001]
[1728146683242,0.098137,62123.0,62122.0,0.06534366]
[1728146684548,0.098137,62123.0,62122.0,0.001]
[1728146689052,0.458937,62123.0,62122.0,0.001]
[1728146694454,0.098137,62123.0,62122.0,0.001]
[1728146694957,0.458937,62123.0,62122.0,0.001]
[1728146698257,0.56609209,62123.0,62122.0,0.001]
[1728146700055,0.56609209,62123.0,62119.0,0.0037]
[1728146700056,0.056339,62120.0,62119.0,0.0037]
[1728146700263,0.056341,62118.0,62117.0,0.00241443]
[1728146700557,0.10575556,62118.0,62117.0,0.00241443]
[1728146701745,0.10575721,62118.0,62117.0,0.00241443]
[1728146701951,0.10675721,62118.0,62117.0,0.00241443]
[1728146706262,0.057341,62118.0,62117.0,0.00241443]
[1728146706455,0.057341,62118.0,62117.0,0.05067151]
[1728146706655,0.057341,62118.0,62117.0,0.00241443]
[1728146709468,0.48396,62118.0,62114.0,0.06804216]
[1728146709757,0.48396,62118.0,62111.0,0.0037]
[1728146709758,0.056347,62112.0,62111.0,0.0037]
[1728146709950,0.056351,62107.0,62106.0,0.0037]
[1728146710152,0.056351,62107.0,62104.0,0.06434216]
[1728146710354,0.056351,62107.0,62103.0,0.06434216]
[1728146710355,0.12,62105.0,62103.0,0.06434216]
[1728146711670,0.001,62105.0,62104.0,0.12]
[1728146711863,0.001,62105.0,62104.0,0.18434216]
[1728146712758,0.002,62105.0,62104.0,0.12]
[1728146712965,0.058353,62105.0,62104.0,0.12]
[1728146713167,0.10777661,62105.0,62104.0,0.12]
[1728146713660,0.10777661,62105.0,62104.0,0.133]
[1728146714361,0.10777661,62105.0,62104.0,0.145]
[1728146717059,0.25990655,62105.0,62104.0,0.145]
[1728146717365,0.25990655,62105.0,62104.0,0.201354]
[1728146717366,0.05142361,62105.0,62104.0,0.201354]
[1728146721064,0.05141949,62105.0,62104.0,0.201354]
[1728146721270,0.21598294,62112.0,62104.0,0.26769527]
[1728146721461,0.21598294,62112.0,62111.0,0.176347]
[1728146721664,0.056344,62115.0,62111.0,0.176347]
[1728146722462,0.001,62112.0,62111.0,0.176347]
[1728146723875,0.001,62112.0,62111.0,0.183347]
[1728146724566,0.001,62112.0,62111.0,0.188347]
[1728146725458,0.001,62112.0,62111.0,0.25266072]
[1728146725663,0.001,62112.0,62111.0,0.188347]
[1728146726472,0.001,62112.0,62111.0,0.25266072]
[1728146728275,0.001,62112.0,62111.0,0.188347]
[1728146728576,0.05041774,62112.0,62111.0,0.188347]
[1728146734978,0.05041817,62112.0,62111.0,0.188347]
[1728146736372,0.001,62112.0,62111.0,0.25266072]
[1728146739278,0.001,62112.0,62111.0,0.188347]
[1728146739681,0.001,62112.0,62111.0,0.25269499]
[1728146741372,0.001,62112.0,62111.0,0.188347]
[1728146746486,0.001,62112.0,62111.0,0.26878199]
[1728146747285,0.001,62112.0,62111.0,0.39147382]
[1728146747874,0.001,62112.0,62111.0,0.26878199]
[1728146749485,0.001,62112.0,62111.0,0.39147398]
[1728146749889,0.001,62112.0,62111.0,0.26878199]
[1728146750382,0.001,62112.0,62111.0,0.3914745]
[1728146750586,0.05041837,62112.0,62111.0,0.188347]
[1728146751382,0.05041834,62112.0,62111.0,0.188347]
[1728146751879,0.05041834,62112.0,62111.0,0.012]
[1728146752080,0.10676534,62112.0,62111.0,0.012]
[1728146752692,0.10676534,62112.0,62111.0,0.068347]
[1728146752693,0.05041834,62112.0,62111.0,0.068347]
[1728146756293,0.05304834,62112.0,62111.0,0.068347]
[1728146757996,0.11079332,62112.0,62111.0,0.068347]
[1728146758486,0.00363,62112.0,62111.0,0.27147574]
[1728146759391,0.00663,62112.0,62111.0,0.26647574]
[1728146759892,0.00663,62112.0,62111.0,0.25947574]
[1728146759893,0.00763,62112.0,62111.0,0.25947574]
[1728146764385,0.00763,62112.0,62111.0,0.25947489]
[1728146765187,0.00763,62112.0,62111.0,0.1790399]
[1728146765688,0.05704797,62112.0,62111.0,0.056347]
[1728146773592,0.00763,62112.0,62111.0,0.17903183]
[1728146777101,0.0360521,62117.0,62115.0,0.056343]
[1728146777397,0.0285521,62117.0,62116.0,0.18440178]
[1728146777593,0.0321,62118.0,62116.0,0.24074478]
[1728146778388,0.007,62117.0,62116.0,0.176343]
[1728146779001,0.06935511,62118.0,62117.0,0.056342]
[1728146779401,0.06935511,62118.0,62117.0,0.12073184]
[1728146779601,0.06935511,62118.0,62117.0,0.056342]
[1728146780508,0.06135511,62118.0,62117.0,0.056342]
[1728146780895,0.06935511,62118.0,62117.0,0.057342]
[1728146781499,0.07735511,62118.0,62117.0,0.058342]
[1728146785612,0.016,62118.0,62117.0,0.26152394]
[1728146785910,0.016,62118.0,62117.0,0.2775437]
[1728146786212,0.0075,62121.0,62120.0,0.056339]
[1728146786404,0.0075,62124.0,62123.0,0.056337]
[1728146786603,0.063832,62128.0,62125.0,0.12]
[1728146786814,0.056332,62128.0,62125.0,0.12]
[1728146787310,0.39028872,62127.0,62125.0,0.176334]
[1728146787513,0.39028872,62127.0,62125.0,0.12]
[1728146787713,0.39028872,62127.0,62126.0,0.056334]
[1728146788415,0.40128872,62127.0,62126.0,0.056334]
[1728146788609,0.50842862,62127.0,62126.0,0.056334]
[1728146789008,1.71630862,62127.0,62121.0,0.0037]
[1728146789314,0.176337,62122.0,62121.0,0.0037]
[1728146789499,0.056339,62120.0,62119.0,0.05634]
[1728146789707,0.31407305,62120.0,62119.0,0.05634]
[1728146790205,0.05634,62119.0,62117.0,0.12]
[1728146790408,0.04940756,62118.0,62117.0,0.12]
[1728146791514,0.04940756,62118.0,62117.0,0.121]
[1728146792221,0.05340756,62118.0,62117.0,0.121]
[1728146793115,0.06040756,62118.0,62117.0,0.122]
[1728146793913,0.06040756,62118.0,62117.0,0.178342]
[1728146795409,0.08888269,62118.0,62117.0,0.178342]
[1728146795609,0.03947513,62118.0,62117.0,0.178342]
[1728146797008,0.15947513,62118.0,62117.0,0.058342]
[1728146797210,1.05957613,62118.0,62117.0,0.002]
[1728146797416,0.056347,62112.0,62110.0,0.07183227]
[1728146797628,0.094,62111.0,62108.0,0.12068227]
[1728146797813,0.094,62111.0,62107.0,0.06433227]
[1728146797814,0.12,62109.0,62107.0,0.06433227]
[1728146798016,0.12,62109.0,62105.0,0.06433227]
[1728146798219,0.12,62109.0,62103.0,0.12241512]
[1728146798220,0.12,62109.0,62106.0,0.06433227]
[1728146798513,0.12,62109.0,62103.0,0.12241512]
[1728146798514,0.12,62109.0,62105.0,0.06433227]
[1728146798720,0.12,62109.0,62108.0,0.002]
[1728146799117,0.176349,62109.0,62108.0,0.002]
[1728146799321,0.176349,62109.0,62103.0,0.06674739]
[1728146799322,0.12,62109.0,62106.0,0.004]
[1728146799622,0.1015,62111.0,62106.0,0.004]
[1728146799623,0.176351,62107.0,62106.0,0.004]
[1728146800720,0.12,62107.0,62101.0,0.06433227]
[1728146801025,0.12,62102.0,62101.0,0.06433227]
[1728146801522,0.12,62102.0,62100.0,0.12068927]
[1728146801722,0.12,62102.0,62100.0,0.06433227]